fUSD/lending_fUSD_20260516
["ID","MTS","AMOUNT","RATE_DAILY","PERIOD"]
[422421176,1778936064000,-1804.37077122,0.00040518,2]
[422421178,1778936064000,-500.0,0.00040518,120]
[422421185,1778936064000,-7287.0691587,0.00040518,30]
[422421186,1778936064000,-7170.4983784,0.00040518,30]
[422421180,1778936064000,-500.0,0.00040518,120]
[422421183,1778936064000,-1329.0,0.00040518,120]
[422421179,1778936064000,-500.0,0.00040518,120]
[422421181,1778936064000,-500.0,0.00040518,120]
[422421182,1778936064000,-500.0,0.00040518,120]
[422421184,1778936064000,-1097.8645151,0.00040518,120]
[422421188,1778936064000,-1999816.35030834,0.00040518,120]
[422421187,1778936064000,-6284.15847412,0.00040518,30]
[422421190,1778936064000,-500.0,0.00040518,120]
[422421198,1778936064000,-500.0,0.00040518,120]
[422421164,1778936064000,-160.0,0.00040518,2]
[422421189,1778936064000,-500.0,0.00040518,120]
[422421177,1778936064000,-165.528943,0.00040518,2]
[422421161,1778936064000,-500.0,0.00040518,60]
[422421142,1778936064000,-400.0,0.00040518,30]
[422421154,1778936064000,-153257.70054582,0.00040518,120]
[422421191,1778936064000,-500.0,0.00040518,120]
[422421133,1778936064000,-5100.0,0.00040518,38]
[422421129,1778936064000,-500.0,0.00040518,120]
[422421134,1778936064000,-400.0,0.00040518,30]
[422421130,1778936064000,-500.0,0.00040518,120]
[422421131,1778936064000,-500.0,0.00040518,120]
[422421132,1778936064000,-431.40497,0.00040518,120]
[422421136,1778936064000,-400.0,0.00040518,30]
[422421135,1778936064000,-400.0,0.00040518,30]
[422421137,1778936064000,-400.0,0.00040518,30]
[422421140,1778936064000,-400.0,0.00040518,30]
[422421145,1778936064000,-400.0,0.00040518,30]
[422421143,1778936064000,-503.66396193,0.00040518,30]
[422421144,1778936064000,-400.0,0.00040518,30]
[422421153,1778936064000,-400.0,0.00040518,30]
[422421147,1778936064000,-400.0,0.00040518,30]
[422421139,1778936064000,-400.0,0.00040518,30]
[422421141,1778936064000,-400.0,0.00040518,30]
[422421138,1778936064000,-400.0,0.00040518,30]
[422421149,1778936064000,-400.0,0.00040518,30]
[422421158,1778936064000,-2000.0,0.00040518,120]
[422421159,1778936064000,-2649.0,0.00040518,120]
[422421155,1778936064000,-12500.0,0.00040518,23]
[422421150,1778936064000,-400.0,0.00040518,30]
[422421160,1778936064000,-500.0,0.00040518,60]
[422421151,1778936064000,-400.0,0.00040518,30]
[422421157,1778936064000,-5000.0,0.00040518,120]
[422421148,1778936064000,-400.0,0.00040518,30]
[422421156,1778936064000,-12500.0,0.00040518,30]
[422421152,1778936064000,-400.0,0.00040518,30]
[422421146,1778936064000,-400.0,0.00040518,30]
[422421196,1778936064000,-500.0,0.00040518,120]
[422421192,1778936064000,-500.0,0.00040518,120]
[422421194,1778936064000,-500.0,0.00040518,120]
[422421237,1778936064000,-500.0,0.00040518,120]
[422421228,1778936064000,-329.98140753,0.00040518,60]
[422421231,1778936064000,-500.0,0.00040518,120]
[422421230,1778936064000,-299.98309776,0.00040518,60]
[422421232,1778936064000,-500.0,0.00040518,120]
[422421233,1778936064000,-500.0,0.00040518,120]
[422421229,1778936064000,-500.0,0.00040518,120]
[422421234,1778936064000,-500.0,0.00040518,120]
[422421236,1778936064000,-500.0,0.00040518,120]
[422421235,1778936064000,-500.0,0.00040518,120]
[422421241,1778936064000,-651.97902166,0.00040518,120]
[422421251,1778936064000,-500.0,0.00040518,120]
[422421240,1778936064000,-50000.0,0.00040518,30]
[422421242,1778936064000,-1189.90535233,0.00040518,120]
[422421252,1778936064000,-500.0,0.00040518,120]
[422421244,1778936064000,-500.0,0.00040518,120]
[422421245,1778936064000,-500.0,0.00040518,120]
[422421246,1778936064000,-500.0,0.00040518,120]
[422421249,1778936064000,-500.0,0.00040518,120]
[422421250,1778936064000,-500.0,0.00040518,120]
[422421243,1778936064000,-299.98309775,0.00040518,60]
[422421247,1778936064000,-500.0,0.00040518,120]
[422421248,1778936064000,-500.0,0.00040518,120]
[422421253,1778936064000,-500.0,0.00040518,120]
[422421254,1778936064000,-500.0,0.00040518,120]
[422421258,1778936064000,-500.0,0.00040518,120]
[422421257,1778936064000,-500.0,0.00040518,120]
[422421256,1778936064000,-500.0,0.00040518,120]
[422421259,1778936064000,-337.97750756,0.00040518,120]
[422421239,1778936064000,-240.98409591,0.00040518,120]
[422421238,1778936064000,-500.0,0.00040518,120]
[422421255,1778936064000,-500.0,0.00040518,120]
[422421227,1778936064000,-329.98140753,0.00040518,60]
[422421193,1778936064000,-500.0,0.00040518,120]
[422421197,1778936064000,-500.0,0.00040518,120]
[422421195,1778936064000,-500.0,0.00040518,120]
[422421200,1778936064000,-500.0,0.00040518,120]
[422421210,1778936064000,-500.0,0.00040518,120]
[422421211,1778936064000,-153.58441137,0.00040518,120]
[422421202,1778936064000,-500.0,0.00040518,120]
[422421199,1778936064000,-500.0,0.00040518,120]
[422421226,1778936064000,-329.98140753,0.00040518,60]
[422421203,1778936064000,-500.0,0.00040518,120]
[422421205,1778936064000,-244.61787325,0.00040518,120]
[422421204,1778936064000,-500.0,0.00040518,120]
[422421208,1778936064000,-500.0,0.00040518,120]
[422421206,1778936064000,-500.0,0.00040518,120]
[422421207,1778936064000,-499.46193187,0.00040518,120]
[422421201,1778936064000,-500.0,0.00040518,120]
[422421212,1778936064000,-100000.0,0.00040518,30]
[422421225,1778936064000,-329.98140753,0.00040518,60]
[422421209,1778936064000,-500.0,0.00040518,120]
[422421219,1778936064000,-50000.0,0.00040518,57]
[422421215,1778936064000,-13055.41464198,0.00040518,30]
[422421222,1778936064000,-50000.0,0.00040518,52]
[422421214,1778936064000,-479.8,0.00040518,120]
[422421216,1778936064000,-99717.32309182,0.00040518,30]
[422421220,1778936064000,-50000.0,0.00040518,58]
[422421218,1778936064000,-50000.0,0.00040518,56]
[422421224,1778936064000,-329.98140753,0.00040518,60]
[422421221,1778936064000,-50000.0,0.00040518,59]
[422421217,1778936064000,-4794.5119999,0.00040518,120]
[422421213,1778936064000,-500.0,0.00040518,120]
[422421223,1778936064000,-5100.0,0.00040518,39]
[422421298,1778936065000,-242.63414821,0.00040518,120]
[422421302,1778936065000,-177.13538425,0.00040518,120]
[422421301,1778936065000,-199.90864961,0.00040518,120]
[422421299,1778936065000,-235.69720633,0.00040518,120]
[422421295,1778936065000,-267.7576757,0.00040518,120]
[422421290,1778936065000,-271.51272478,0.00040518,120]
[422421300,1778936065000,-169.89828969,0.00040518,120]
[422421307,1778936065000,-208.9469278,0.00040518,120]
[422421306,1778936065000,-158.336229,0.00040518,30]
[422421296,1778936065000,-180.87622358,0.00040518,31]
[422421287,1778936065000,-220.37605429,0.00040518,120]
[422421297,1778936065000,-221.41549704,0.00040518,120]
[422421303,1778936065000,-249.39767008,0.00040518,120]
[422421320,1778936065000,-192.22721537,0.00040518,120]
[422421304,1778936065000,-303.35490598,0.00040518,120]
[422421309,1778936065000,-196.78938232,0.00040518,120]
[422421319,1778936065000,-251.30104651,0.00040518,120]
[422421308,1778936065000,-3329.73612653,0.00040518,60]
[422421316,1778936065000,-170.78968704,0.00040518,120]
[422421317,1778936065000,-318.04492244,0.00040518,120]
[422421313,1778936065000,-200.82219607,0.00040518,120]
[422421311,1778936065000,-500.0,0.00040518,120]
[422421312,1778936065000,-500.0,0.00040518,120]
[422421310,1778936065000,-317.77402977,0.00040518,120]
[422421315,1778936065000,-500.0,0.00040518,120]
[422421318,1778936065000,-205.98922492,0.00040518,120]
[422421314,1778936065000,-196.65182898,0.00040518,120]
[422421289,1778936065000,-168.43414958,0.00040518,120]
[422421305,1778936065000,-165.49735363,0.00040518,120]
[422421285,1778936065000,-500.0,0.00040518,120]
[422421273,1778936065000,-500.0,0.00040518,120]
[422421284,1778936065000,-349.93,0.00040518,120]
[422421331,1778936065000,-200.49576872,0.00040518,120]
[422421264,1778936065000,-500.0,0.00040518,120]
[422421265,1778936065000,-500.0,0.00040518,120]
[422421266,1778936065000,-500.0,0.00040518,120]
[422421263,1778936065000,-500.0,0.00040518,120]
[422421260,1778936065000,-299.98309775,0.00040518,60]
[422421262,1778936065000,-500.0,0.00040518,120]
[422421261,1778936065000,-500.0,0.00040518,120]
[422421267,1778936065000,-500.0,0.00040518,120]
[422421270,1778936065000,-500.0,0.00040518,120]
[422421271,1778936065000,-500.0,0.00040518,120]
[422421269,1778936065000,-500.0,0.00040518,120]
[422421274,1778936065000,-500.0,0.00040518,120]
[422421272,1778936065000,-500.0,0.00040518,120]
[422421277,1778936065000,-500.0,0.00040518,120]
[422421275,1778936065000,-500.0,0.00040518,120]
[422421276,1778936065000,-500.0,0.00040518,120]
[422421268,1778936065000,-500.0,0.00040518,120]
[422421278,1778936065000,-500.0,0.00040518,120]
[422421279,1778936065000,-424.53107509,0.00040518,120]
[422421280,1778936065000,-352.76598477,0.00040518,120]
[422421282,1778936065000,-233.02106783,0.00040518,120]
[422421292,1778936065000,-337.51203825,0.00040518,120]
[422421288,1778936065000,-234.85139282,0.00040518,120]
[422421291,1778936065000,-159.84321966,0.00040518,120]
[422421283,1778936065000,-227.28763172,0.00040518,120]
[422421293,1778936065000,-233.72946251,0.00040518,120]
[422421286,1778936065000,-256.18489851,0.00040518,120]
[422421281,1778936065000,-331.03958268,0.00040518,120]
[422421294,1778936065000,-160.19483012,0.00040518,120]
[422421321,1778936065000,-632.94605509,0.00040518,120]
[422421325,1778936065000,-170.65583144,0.00040518,120]
[422421324,1778936065000,-207.68834894,0.00040518,120]
[422421355,1778936065000,-212.65683485,0.00040518,120]
[422421360,1778936065000,-301.56120148,0.00040518,120]
[422421370,1778936065000,-152.29644438,0.00040518,120]
[422421359,1778936065000,-287.82566594,0.00040518,120]
[422421362,1778936065000,-214.29593421,0.00040518,120]
[422421364,1778936065000,-150.74415176,0.00040518,120]
[422421367,1778936065000,-256.22830225,0.00040518,120]
[422421368,1778936065000,-464.37304211,0.00040518,120]
[422421361,1778936065000,-183.89874721,0.00040518,120]
[422421365,1778936065000,-253.80129711,0.00040518,120]
[422421363,1778936065000,-157.41925683,0.00040518,120]
[422421369,1778936065000,-175.22073418,0.00040518,120]
[422421366,1778936065000,-202.03941258,0.00040518,120]
[422421352,1778936065000,-500.0,0.00040518,120]
[422421371,1778936065000,-292.78334559,0.00040518,120]
[422421372,1778936065000,-2401.3343,0.00040518,120]
[422421375,1778936065000,-346.49070646,0.00040518,120]
[422421379,1778936065000,-178.03825918,0.00040518,120]
[422421373,1778936065000,-166.46656005,0.00040518,120]
[422421382,1778936065000,-441.2924,0.00040518,120]
[422421376,1778936065000,-238.88940404,0.00040518,120]
[422421377,1778936065000,-159.16525258,0.00040518,120]
[422421378,1778936065000,-236.72849458,0.00040518,120]
[422421381,1778936065000,-231.83081724,0.00040518,120]
[422421380,1778936065000,-329.18462271,0.00040518,120]
[422421384,1778936065000,-500.0,0.00040518,120]
[422421386,1778936065000,-264.68304394,0.00040518,120]
[422421383,1778936065000,-461.9177476,0.00040518,120]
[422421374,1778936065000,-500.0,0.00040518,120]
[422421351,1778936065000,-500.0,0.00040518,120]
[422421385,1778936065000,-191.04158602,0.00040518,120]
[422421347,1778936065000,-500.0,0.00040518,120]
[422421323,1778936065000,-285.59656632,0.00040518,120]
[422421327,1778936065000,-215.63649747,0.00040518,120]
[422421332,1778936065000,-500.0,0.00040518,120]
[422421322,1778936065000,-637.85877907,0.00040518,120]
[422421326,1778936065000,-183.76842993,0.00040518,120]
[422421329,1778936065000,-263.72317784,0.00040518,120]
[422421328,1778936065000,-181.41378782,0.00040518,120]
[422421330,1778936065000,-224.93352324,0.00040518,120]
[422421345,1778936065000,-242.53211073,0.00040518,120]
[422421334,1778936065000,-273.44034543,0.00040518,120]
[422421344,1778936065000,-218.91855959,0.00040518,120]
[422421337,1778936065000,-200.0771898,0.00040518,120]
[422421338,1778936065000,-205.15552761,0.00040518,120]
[422421335,1778936065000,-348.86989974,0.00040518,120]
[422421333,1778936065000,-365.14428872,0.00040518,120]
[422421336,1778936065000,-297.35812267,0.00040518,120]
[422421343,1778936065000,-361.05068027,0.00040518,120]
[422421349,1778936065000,-500.0,0.00040518,120]
[422421353,1778936065000,-500.0,0.00040518,120]
[422421350,1778936065000,-500.0,0.00040518,120]
[422421354,1778936065000,-582.3758,0.00040518,120]
[422421357,1778936065000,-460.99194104,0.00040518,120]
[422421348,1778936065000,-500.0,0.00040518,120]
[422421358,1778936065000,-514.55409781,0.00040518,120]
[422421346,1778936065000,-500.0,0.00040518,120]
[422421341,1778936065000,-359.71735875,0.00040518,120]
[422421342,1778936065000,-200.03631842,0.00040518,120]
[422421340,1778936065000,-610.31894724,0.00040518,120]
[422421339,1778936065000,-279.36123097,0.00040518,120]
[422421356,1778936065000,-361.73518881,0.00040518,120]
[422421432,1778936066000,-499.87253173,0.00040518,120]
[422421429,1778936066000,-500.0,0.00040518,120]
[422421431,1778936066000,-500.0,0.00040518,120]
[422421435,1778936066000,-500.0,0.00040518,120]
[422421426,1778936066000,-153.80380006,0.00040518,120]
[422421424,1778936066000,-500.0,0.00040518,120]
[422421434,1778936066000,-500.0,0.00040518,120]
[422421433,1778936066000,-186.45216745,0.00040518,120]
[422421422,1778936066000,-500.0,0.00040518,120]
[422421423,1778936066000,-500.0,0.00040518,120]
[422421419,1778936066000,-191.80132922,0.00040518,120]
[422421425,1778936066000,-623.88312621,0.00040518,120]
[422421427,1778936066000,-221.22176573,0.00040518,120]
[422421444,1778936066000,-188.54998169,0.00040518,120]
[422421428,1778936066000,-500.0,0.00040518,120]
[422421446,1778936066000,-500.0,0.00040518,120]
[422421448,1778936066000,-209.52515174,0.00040518,120]
[422421436,1778936066000,-602.36256844,0.00040518,120]
[422421437,1778936066000,-241.1908649,0.00040518,120]
[422421447,1778936066000,-500.0,0.00040518,120]
[422421440,1778936066000,-187.01827019,0.00040518,120]
[422421443,1778936066000,-305.0,0.00040518,30]
[422421438,1778936066000,-172.28706326,0.00040518,120]
[422421439,1778936066000,-279.87547966,0.00040518,120]
[422421442,1778936066000,-301.41633353,0.00040518,120]
[422421441,1778936066000,-457.5,0.00040518,120]
[422421445,1778936066000,-500.0,0.00040518,120]
[422421418,1778936066000,-1530.33,0.00040518,120]
[422421430,1778936066000,-299.3616362,0.00040518,120]
[422421417,1778936066000,-191.78853156,0.00040518,120]
[422421396,1778936066000,-237.21528136,0.00040518,120]
[422421411,1778936066000,-191.62799146,0.00040518,120]
[422421450,1778936066000,-194.34904685,0.00040518,120]
[422421387,1778936066000,-284.49714779,0.00040518,120]
[422421394,1778936066000,-275.22974859,0.00040518,120]
[422421389,1778936066000,-273.50902729,0.00040518,120]
[422421391,1778936066000,-459.03,0.00040518,120]
[422421392,1778936066000,-199.07272259,0.00040518,120]
[422421390,1778936066000,-226.39460838,0.00040518,120]
[422421388,1778936066000,-299.52243631,0.00040518,120]
[422421393,1778936066000,-285.56809658,0.00040518,120]
[422421395,1778936066000,-191.799108,0.00040518,120]
[422421400,1778936066000,-163.67421913,0.00040518,120]
[422421406,1778936066000,-500.0,0.00040518,120]
[422421408,1778936066000,-500.0,0.00040518,120]
[422421397,1778936066000,-306.4726618,0.00040518,120]
[422421399,1778936066000,-195.3233377,0.00040518,120]
[422421398,1778936066000,-1003.0,0.00040518,120]
[422421402,1778936066000,-375.23558854,0.00040518,120]
[422421407,1778936066000,-199.0802902,0.00040518,120]
[422421404,1778936066000,-154.70220842,0.00040518,120]
[422421401,1778936066000,-500.0,0.00040518,120]
[422421405,1778936066000,-351.91967468,0.00040518,120]
[422421403,1778936066000,-163.45071777,0.00040518,120]
[422421410,1778936066000,-302.53014496,0.00040518,120]
[422421420,1778936066000,-259.17804324,0.00040518,120]
[422421409,1778936066000,-625.8787,0.00040518,120]
[422421421,1778936066000,-299.19240951,0.00040518,120]
[422421415,1778936066000,-319.7685,0.00040518,120]
[422421414,1778936066000,-155.8306299,0.00040518,120]
[422421413,1778936066000,-327.91740466,0.00040518,120]
[422421416,1778936066000,-209.37901633,0.00040518,120]
[422421449,1778936066000,-287.61902545,0.00040518,120]
[422421412,1778936066000,-500.0,0.00040518,120]
[422421460,1778936066000,-159.32812606,0.00040518,120]
[422421483,1778936066000,-211.77941907,0.00040518,120]
[422421488,1778936066000,-268.59509487,0.00040518,120]
[422421487,1778936066000,-402.98206248,0.00040518,120]
[422421493,1778936066000,-1228.22120182,0.00040518,120]
[422421495,1778936066000,-156.49886696,0.00040518,120]
[422421498,1778936066000,-171.3008338,0.00040518,120]
[422421492,1778936066000,-224.12429605,0.00040518,60]
[422421496,1778936066000,-158.11642146,0.00040518,120]
[422421489,1778936066000,-186.29124966,0.00040518,30]
[422421490,1778936066000,-440.47504491,0.00040518,120]
[422421491,1778936066000,-371.48098059,0.00040518,120]
[422421494,1778936066000,-157.61651989,0.00040518,120]
[422421497,1778936066000,-150.6912461,0.00040518,120]
[422421501,1778936066000,-151.39842782,0.00040518,120]
[422421499,1778936066000,-500.0,0.00040518,120]
[422421504,1778936066000,-161.14926957,0.00040518,120]
[422421503,1778936066000,-153.58899291,0.00040518,120]
[422421502,1778936066000,-156.48700954,0.00040518,120]
[422421500,1778936066000,-264.85297428,0.00040518,120]
[422421506,1778936066000,-188.39582975,0.00040518,4]
[422421510,1778936066000,-124388.0,0.00040518,60]
[422421507,1778936066000,-155.97257556,0.00040518,120]
[422421512,1778936066000,-800.85804403,0.00040518,120]
[422421511,1778936066000,-1069.33,0.00040518,31]
[422421505,1778936066000,-166.17401305,0.00040518,120]
[422421508,1778936066000,-164.79467684,0.00040518,120]
[422421509,1778936066000,-167.68833752,0.00040518,120]
[422421513,1778936066000,-300.63,0.00040518,120]
[422421452,1778936066000,-233.85003281,0.00040518,120]
[422421479,1778936066000,-193.2607824,0.00040518,120]
[422421515,1778936066000,-500.0,0.00040518,120]
[422421514,1778936066000,-3951.77614638,0.00040518,2]
[422421475,1778936066000,-311.52807479,0.00040518,11]
[422421481,1778936066000,-212.50943632,0.00040518,120]
[422421451,1778936066000,-178.08117505,0.00040518,120]
[422421455,1778936066000,-406.69962437,0.00040518,120]
[422421457,1778936066000,-316.46226249,0.00040518,120]
[422421459,1778936066000,-150.03834389,0.00040518,120]
[422421454,1778936066000,-159.27207803,0.00040518,120]
[422421458,1778936066000,-633.67333828,0.00040518,120]
[422421456,1778936066000,-242.164926,0.00040518,120]
[422421462,1778936066000,-453.77385675,0.00040518,120]
[422421464,1778936066000,-296.05373328,0.00040518,120]
[422421465,1778936066000,-219.32095546,0.00040518,120]
[422421472,1778936066000,-243.36291054,0.00040518,120]
[422421463,1778936066000,-182.92549731,0.00040518,120]
[422421466,1778936066000,-273.09150888,0.00040518,120]
[422421467,1778936066000,-436.32530968,0.00040518,120]
[422421453,1778936066000,-278.87554303,0.00040518,120]
[422421461,1778936066000,-500.0,0.00040518,120]
[422421480,1778936066000,-216.06772833,0.00040518,120]
[422421486,1778936066000,-166.33249401,0.00040518,120]
[422421482,1778936066000,-261.21795596,0.00040518,120]
[422421477,1778936066000,-268.22710447,0.00040518,120]
[422421471,1778936066000,-213.22193395,0.00040518,120]
[422421484,1778936066000,-258.97168944,0.00040518,120]
[422421478,1778936066000,-500.0,0.00040518,120]
[422421476,1778936066000,-256.53268177,0.00040518,120]
[422421474,1778936066000,-506.5173139,0.00040518,120]
[422421473,1778936066000,-225.7763384,0.00040518,120]
[422421468,1778936066000,-224.72515013,0.00040518,120]
[422421470,1778936066000,-201.65146703,0.00040518,120]
[422421469,1778936066000,-203.09494631,0.00040518,120]
[422421485,1778936066000,-181.02803255,0.00040518,120]
[422421554,1778936067000,-5072.48289658,0.00040518,30]
[422421559,1778936067000,-500.0,0.00040518,120]
[422421556,1778936067000,-500.0,0.00040518,120]
[422421561,1778936067000,-500.0,0.00040518,120]
[422421555,1778936067000,-500.0,0.00040518,120]
[422421549,1778936067000,-168.84884574,0.00040518,120]
[422421562,1778936067000,-500.0,0.00040518,120]
[422421551,1778936067000,-172.61345249,0.00040518,60]
[422421553,1778936067000,-156.31537041,0.00040518,120]
[422421552,1778936067000,-3868.29087391,0.00040518,120]
[422421546,1778936067000,-228.35060624,0.00040518,10]
[422421563,1778936067000,-500.0,0.00040518,120]
[422421560,1778936067000,-500.0,0.00040518,120]
[422421571,1778936067000,-500.0,0.00040518,120]
[422421558,1778936067000,-500.0,0.00040518,120]
[422421575,1778936067000,-500.0,0.00040518,120]
[422421565,1778936067000,-500.0,0.00040518,120]
[422421572,1778936067000,-500.0,0.00040518,120]
[422421576,1778936067000,-229.96318285,0.00040518,120]
[422421573,1778936067000,-150.0,0.00040518,120]
[422421566,1778936067000,-173.47780534,0.00040518,120]
[422421568,1778936067000,-214.73810274,0.00040518,120]
[422421567,1778936067000,-163.76197437,0.00040518,120]
[422421564,1778936067000,-500.0,0.00040518,120]
[422421569,1778936067000,-202.33,0.00040518,60]
[422421548,1778936067000,-536.37228263,0.00040518,120]
[422421574,1778936067000,-1300.0,0.00040518,120]
[422421557,1778936067000,-500.0,0.00040518,120]
[422421545,1778936067000,-415.82762214,0.00040518,30]
[422421528,1778936067000,-1446.46451768,0.00040518,120]
[422421547,1778936067000,-232.43808775,0.00040518,120]
[422421570,1778936067000,-3465.08553498,0.00040518,120]
[422421524,1778936067000,-500.0,0.00040518,120]
[422421516,1778936067000,-500.0,0.00040518,120]
[422421525,1778936067000,-500.0,0.00040518,120]
[422421517,1778936067000,-500.0,0.00040518,120]
[422421521,1778936067000,-500.0,0.00040518,120]
[422421520,1778936067000,-500.0,0.00040518,120]
[422421519,1778936067000,-500.0,0.00040518,120]
[422421518,1778936067000,-500.0,0.00040518,120]
[422421523,1778936067000,-500.0,0.00040518,120]
[422421522,1778936067000,-500.0,0.00040518,120]
[422421526,1778936067000,-500.0,0.00040518,120]
[422421527,1778936067000,-411.51058279,0.00040518,120]
[422421544,1778936067000,-1626.45598607,0.00040518,120]
[422421533,1778936067000,-500.0,0.00040518,120]
[422421529,1778936067000,-500.0,0.00040518,120]
[422421538,1778936067000,-296.11355786,0.00040518,120]
[422421532,1778936067000,-500.0,0.00040518,120]
[422421537,1778936067000,-15759.56513645,0.00040518,120]
[422421534,1778936067000,-500.13580681,0.00040518,120]
[422421535,1778936067000,-257.42874722,0.00040518,120]
[422421536,1778936067000,-1265.41982788,0.00040518,120]
[422421540,1778936067000,-153.42905095,0.00040518,60]
[422421541,1778936067000,-350.70639451,0.00040518,60]
[422421542,1778936067000,-151.47543967,0.00040518,120]
[422421550,1778936067000,-166.32929927,0.00040518,120]
[422421539,1778936067000,-159.48483956,0.00040518,120]
[422421543,1778936067000,-6399.30179035,0.00040518,30]
[422421530,1778936067000,-500.0,0.00040518,120]
[422421578,1778936067000,-372.47859934,0.00040518,120]
[422421531,1778936067000,-500.0,0.00040518,120]
[422421577,1778936067000,-210.0,0.00040518,120]
[422421610,1778936067000,-1811.8,0.00040518,120]
[422421608,1778936067000,-602.91180441,0.00040518,120]
[422421613,1778936067000,-1811.8,0.00040518,120]
[422421612,1778936067000,-1811.8,0.00040518,120]
[422421617,1778936067000,-1811.8,0.00040518,120]
[422421627,1778936067000,-1811.8,0.00040518,120]
[422421618,1778936067000,-1811.8,0.00040518,120]
[422421639,1778936067000,-500.0,0.00040518,120]
[422421616,1778936067000,-1811.8,0.00040518,120]
[422421628,1778936067000,-1811.8,0.00040518,120]
[422421619,1778936067000,-1811.8,0.00040518,120]
[422421629,1778936067000,-1811.8,0.00040518,120]
[422421620,1778936067000,-1811.8,0.00040518,120]
[422421621,1778936067000,-1811.8,0.00040518,120]
[422421624,1778936067000,-1811.8,0.00040518,120]
[422421625,1778936067000,-1811.8,0.00040518,120]
[422421622,1778936067000,-1811.8,0.00040518,120]
[422421626,1778936067000,-1811.8,0.00040518,120]
[422421630,1778936067000,-1811.8,0.00040518,120]
[422421634,1778936067000,-500.0,0.00040518,120]
[422421632,1778936067000,-1811.90045551,0.00040518,120]
[422421635,1778936067000,-277.0499546,0.00040518,120]
[422421633,1778936067000,-38703.2,0.00040518,120]
[422421631,1778936067000,-1811.8,0.00040518,120]
[422421637,1778936067000,-500.0,0.00040518,120]
[422421636,1778936067000,-4183559.0,0.00040518,30]
[422421638,1778936067000,-500.0,0.00040518,120]
[422421611,1778936067000,-1811.8,0.00040518,120]
[422421609,1778936067000,-1811.8,0.00040518,120]
[422421623,1778936067000,-1811.8,0.00040518,120]
[422421603,1778936067000,-500.0,0.00040518,120]
[422421614,1778936067000,-1811.8,0.00040518,120]
[422421588,1778936067000,-500.0,0.00040518,16]
[422421579,1778936067000,-232.70269196,0.00040518,120]
[422421590,1778936067000,-427.73978967,0.00040518,16]
[422421581,1778936067000,-500.0,0.00040518,16]
[422421580,1778936067000,-500.0,0.00040518,16]
[422421583,1778936067000,-500.0,0.00040518,16]
[422421584,1778936067000,-500.0,0.00040518,16]
[422421585,1778936067000,-500.0,0.00040518,16]
[422421586,1778936067000,-500.0,0.00040518,16]
[422421582,1778936067000,-500.0,0.00040518,16]
[422421587,1778936067000,-500.0,0.00040518,16]
[422421591,1778936067000,-4947.0,0.00040518,30]
[422421592,1778936067000,-1053.7160992,0.00040518,120]
[422421589,1778936067000,-500.0,0.00040518,16]
[422421595,1778936067000,-634.88213642,0.00040518,30]
[422421604,1778936067000,-500.0,0.00040518,120]
[422421594,1778936067000,-390.12906057,0.00040518,120]
[422421606,1778936067000,-500.0,0.00040518,120]
[422421605,1778936067000,-500.0,0.00040518,120]
[422421607,1778936067000,-216.95646995,0.00040518,120]
[422421599,1778936067000,-500.0,0.00040518,120]
[422421598,1778936067000,-500.0,0.00040518,120]
[422421615,1778936067000,-1811.8,0.00040518,120]
[422421597,1778936067000,-500.0,0.00040518,120]
[422421602,1778936067000,-500.0,0.00040518,120]
[422421593,1778936067000,-601.21744255,0.00040518,120]
[422421596,1778936067000,-500.0,0.00040518,120]
[422421601,1778936067000,-500.0,0.00040518,120]
[422421600,1778936067000,-500.0,0.00040518,120]
[422421667,1778936068000,-665.9,0.00040518,120]
[422421660,1778936068000,-665.9,0.00040518,120]